{"text_format":"1","workbook":"xlsx","n_sheets":6,"sheets":["Клиенты","Assorti","Итог","Итог (2)","Итог (3)","Итог (4)"],"not_rendered":{"charts":0,"images":5,"macros":1,"external_links":0,"defined_names":0,"comments":0,"pivot_tables":0},"unopened":[],"bounds":{"document_bytes":16777216,"sheet_cells":100000,"rows_first":2000,"rows_last":500,"rows_between":2000,"halvings":0,"cell_chars":16384,"cell_head_chars":4096},"cells_cut":0,"cells_raw":0,"read":"whole","date_system":"1900"}

{"sheet":"Клиенты","index":0,"n_rows":24,"n_cols":21,"rows_kept":24,"cut":false,"hidden":false,"merged":[[25,3,25,6],[25,7,25,11],[25,12,25,16],[15,7,15,11],[15,12,15,16],[23,3,23,6],[23,7,23,11],[23,12,23,16],[24,3,24,6],[24,7,24,11],[24,12,24,16],[5,3,5,6],[5,7,5,11],[5,12,5,16],[13,3,13,6],[13,7,13,11],[13,12,13,16],[22,1,22,2],[22,3,22,6],[22,7,22,11],[22,12,22,16],[3,3,3,6],[3,7,3,11],[3,12,3,16],[4,3,4,6],[4,7,4,11],[4,12,4,16],[10,3,10,16],[12,1,12,2],[12,3,12,6],[12,7,12,11],[12,12,12,16],[20,3,20,16],[14,3,14,6],[14,7,14,11],[14,12,14,16],[15,3,15,6],[2,1,2,2],[2,3,2,6],[2,7,2,11],[2,12,2,16],[0,3,0,16]]}
[null,null,null,"Клиент 1"]
[]
[null,null,null,"Наименование",null,null,null,"Сумма",null,null,null,null,"Код",null,null,null,null,null,null,null,"Яблоко "]
[null,null,null,"Груша",null,null,null,1000,null,null,null,null,3584,null,null,null,null,null,null,null,"Груша"]
[null,null,null,"Яблоко ",null,null,null,200,null,null,null,null,3265,null,null,null,null,null,null,null,"Вишня"]
[null,null,null,null,null,null,null,null,null,null,null,null,null,null,null,null,null,null,null,null,"Малина"]
[]
[]
[]
[]
[null,null,null,"Клиент 2"]
[]
[null,null,null,"Наименование",null,null,null,"Сумма",null,null,null,null,"Код"]
[null,null,null,"Вишня",null,null,null,2000,null,null,null,null,8456]
[]
[]
[]
[]
[]
[]
[null,null,null,"Клиент 3"]
[]
[null,null,null,"Наименование",null,null,null,"Сумма",null,null,null,null,"Код"]
[null,null,null,"Малина",null,null,null,100,null,null,null,null,1654]

{"sheet":"Assorti","index":1,"n_rows":33,"n_cols":26,"rows_kept":33,"cut":false,"hidden":false,"merged":[[2,23,2,27],[0,10,0,15],[32,2,32,6],[23,7,23,10],[24,7,24,10],[25,7,25,10],[26,7,26,10],[26,2,26,6],[27,2,27,6],[28,2,28,6],[29,2,29,6],[30,2,30,6],[31,2,31,6],[20,2,20,6],[21,2,21,6],[22,2,22,6],[23,2,23,6],[24,2,24,6],[25,2,25,6],[2,16,2,20],[9,2,9,6],[10,2,10,6],[18,5,18,15],[18,16,18,20],[19,2,19,6],[15,2,15,6],[16,2,16,6],[4,2,4,6],[14,2,14,6],[8,2,8,6],[11,2,11,6],[12,2,12,6],[13,2,13,6],[2,5,2,15],[3,2,3,6],[5,2,5,6],[6,2,6,6],[7,2,7,6]]}
[null,null,null,null,null,null,null,null,null,null,"Список",null,null,null,null,null,null,null,null,null,null,null,null,null,null,"Список - Измененния"]
[null,null,null,null,null,null,null,null,null,null,null,null,null,null,null,null,null,null,null,null,null,null,null,null,null,"Список"]
[null,null,null,null,null,"Ассортимент",null,null,null,null,null,null,null,null,null,null,{"$f":"Клиенты!D4","v":"Груша"}]
[null,null,"Яблоко ",null,null,null,null,null,null,null,null,null,null,{"$f":"IF($Q$3=\"Яблоко\",\"\",\"строку не заполнять\")","v":"строку не заполнять"}]
[null,null,"                 свежее ",null,null,null,null,null,null,null,null,null,null,{"$f":"IF($Q$3=\"Яблоко\",\"\",\"строку не заполнять\")","v":"строку не заполнять"}]
[null,null,"                 дичка",null,null,null,null,null,null,null,null,null,null,"строку не заполнять"]
[null,null,"Груша",null,null,null,null,null,null,null,null,null,null,{"$f":"IF($Q$3=\"Груша\",\"\",\"строку не заполнять\")","v":""}]
[null,null,"                 свежая ",null,null,null,null,null,null,null,null,null,null,{"$f":"IF($Q$3=\"Груша\",\"\",\"строку не заполнять\")","v":""}]
[null,null,"                 дичка",null,null,null,null,null,null,null,null,null,null,""]
[null,null,"                 свежая ",null,null,null,null,null,null,null,null,null,null,null,null,null,null,null,{"$f":"IF($K$1=\"Список - Измененния\",\"\",\"строку не заполнять\")","v":"строку не заполнять"}]
[null,null,"                 дичка",null,null,null,null,null,null,null,null,null,null,null,null,null,null,null,{"$f":"IF($K$1=\"Список - Измененния\",\"\",\"строку не заполнять\")","v":"строку не заполнять"}]
[null,null,"Вишня",null,null,null,null,null,null,null,null,null,null,{"$f":"IF($Q$3=\"Вишня\",\"\",\"строку не заполнять\")","v":"строку не заполнять"}]
[null,null,"                 свежая ",null,null,null,null,null,null,null,null,null,null,{"$f":"IF($Q$3=\"Вишня\",\"\",\"строку не заполнять\")","v":"строку не заполнять"}]
[null,null,"                 дичка",null,null,null,null,null,null,null,null,null,null,"строку не заполнять"]
[null,null,"Малина",null,null,null,null,null,null,null,null,null,null,{"$f":"IF($Q$3=\"Малина\",\"\",\"строку не заполнять\")","v":"строку не заполнять"}]
[null,null,"                 свежее ",null,null,null,null,null,null,null,null,null,null,{"$f":"IF($Q$3=\"Малина\",\"\",\"строку не заполнять\")","v":"строку не заполнять"}]
[null,null,"                 сушеная",null,null,null,null,null,null,null,null,null,null,"строку не заполнять"]
[]
[null,null,null,null,null,"Цена",null,null,null,null,null,null,null,null,null,null,{"$f":"Q3","v":"Груша"}]
[null,null,"Яблоко ",null,null,null,null,null,null,null,null,null,null,{"$f":"IF($Q$3=\"Яблоко\",\"\",\"строку не заполнять\")","v":"строку не заполнять"}]
[null,null,"                 свежее ",null,null,null,null,null,null,null,null,null,null,{"$f":"IF($Q$3=\"Яблоко\",\"\",\"строку не заполнять\")","v":"строку не заполнять"}]
[null,null,"                 дичка",null,null,null,null,null,null,null,null,null,null,"строку не заполнять"]
[null,null,"Груша",null,null,null,null,null,null,null,null,null,null,{"$f":"IF($Q$3=\"Груша\",\"\",\"строку не заполнять\")","v":""}]
[null,null,"                 свежая ",null,null,null,null,100,null,null,null,null,null,{"$f":"IF($Q$3=\"Груша\",\"\",\"строку не заполнять\")","v":""}]
[null,null,"                 дичка",null,null,null,null,1000,null,null,null,null,null,""]
[null,null,"                 свежая ",null,null,null,null,null,null,null,null,null,null,null,null,null,null,null,{"$f":"IF($K$1=\"Список - Измененния\",\"\",\"строку не заполнять\")","v":"строку не заполнять"}]
[null,null,"                 дичка",null,null,null,null,null,null,null,null,null,null,null,null,null,null,null,{"$f":"IF($K$1=\"Список - Измененния\",\"\",\"строку не заполнять\")","v":"строку не заполнять"}]
[null,null,"Вишня",null,null,null,null,null,null,null,null,null,null,{"$f":"IF($Q$3=\"Вишня\",\"\",\"строку не заполнять\")","v":"строку не заполнять"}]
[null,null,"                 свежая ",null,null,null,null,null,null,null,null,null,null,{"$f":"IF($Q$3=\"Вишня\",\"\",\"строку не заполнять\")","v":"строку не заполнять"}]
[null,null,"                 дичка",null,null,null,null,null,null,null,null,null,null,"строку не заполнять"]
[null,null,"Малина",null,null,null,null,null,null,null,null,null,null,{"$f":"IF($Q$3=\"Малина\",\"\",\"строку не заполнять\")","v":"строку не заполнять"}]
[null,null,"                 свежее ",null,null,null,null,null,null,null,null,null,null,{"$f":"IF($Q$3=\"Малина\",\"\",\"строку не заполнять\")","v":"строку не заполнять"}]
[null,null,"                 сушеная",null,null,null,null,null,null,null,null,null,null,"строку не заполнять"]

{"sheet":"Итог","index":2,"n_rows":7,"n_cols":9,"rows_kept":7,"cut":false,"hidden":false,"merged":[[0,8,0,23],[2,8,2,12],[4,8,4,12],[6,8,6,12],[2,14,2,20],[4,14,4,20],[6,14,6,20]]}
[null,null,null,null,null,null,null,null,"Итог"]
[]
[null,null,null,null,null,null,null,null,"Наименование"]
[]
[null,null,null,null,null,null,null,null,"Сумма"]
[]
[null,null,null,null,null,null,null,null,"Код"]

{"sheet":"Итог (2)","index":3,"n_rows":7,"n_cols":9,"rows_kept":7,"cut":false,"hidden":false,"merged":[[0,8,0,23],[2,8,2,12],[2,14,2,20],[4,8,4,12],[4,14,4,20],[6,8,6,12],[6,14,6,20]]}
[null,null,null,null,null,null,null,null,"Итог"]
[]
[null,null,null,null,null,null,null,null,"Наименование"]
[]
[null,null,null,null,null,null,null,null,"Сумма"]
[]
[null,null,null,null,null,null,null,null,"Код"]

{"sheet":"Итог (3)","index":4,"n_rows":7,"n_cols":9,"rows_kept":7,"cut":false,"hidden":false,"merged":[[0,8,0,23],[2,8,2,12],[2,14,2,20],[4,8,4,12],[4,14,4,20],[6,8,6,12],[6,14,6,20]]}
[null,null,null,null,null,null,null,null,"Итог"]
[]
[null,null,null,null,null,null,null,null,"Наименование"]
[]
[null,null,null,null,null,null,null,null,"Сумма"]
[]
[null,null,null,null,null,null,null,null,"Код"]

{"sheet":"Итог (4)","index":5,"n_rows":7,"n_cols":9,"rows_kept":7,"cut":false,"hidden":false,"merged":[[0,8,0,23],[2,8,2,12],[2,14,2,20],[4,8,4,12],[4,14,4,20],[6,8,6,12],[6,14,6,20]]}
[null,null,null,null,null,null,null,null,"Итог"]
[]
[null,null,null,null,null,null,null,null,"Наименование"]
[]
[null,null,null,null,null,null,null,null,"Сумма"]
[]
[null,null,null,null,null,null,null,null,"Код"]